Cogmind - Beta 17 @@@ ROGUE MODE // 2026.06.24 @ 21:30:26 Player: hellbent Result: Destroyed by G-47 Trooper with Particle Gun Performance ------------- Evolutions (2) 1000 Regions Visited (3) 600 Robots Destroyed (80) 400 Value Destroyed (2576) 2576 Prototype IDs (6) 120 Alien Tech Used (0) 0 Bonus (7950) 7950 TOTAL SCORE: 12646 Bonus ------- Prayed to X0-1V1 5000 Major X0-1V1 Interference 2950 Cogmind --------- Core Integrity 0/550 Matter 300/300 Energy 100/100 System Corruption 0% Temperature Cool (9) Movement Rolling (200) Ox8 Location -8/Materials Parts ------- > --- POWER (2) -------- (None) > --- PROPULSION (1) --- Wheel > --- UTILITY (5) ------ Huge Storage Unit > --- WEAPON (3) ------- Heavy Hammer > --- INVENTORY (25) --- Improved Ion Engine Improved Ion Engine Wheel Wheel Wheel Compact Wheel Armored Wheel Armored Wheel Cooling System Cooling System Coolant Injector High-capacity Battery (250) High-capacity Matter Pod (200) Signal Interpreter Reaction Control System Proton Missile Launcher Proton Missile Launcher Mini Grenade Launcher Katana Peak State ------------ > --- POWER ------------ Improved Ion Engine Micro Nuclear Core > --- PROPULSION ------- Armored Wheel > --- UTILITY ---------- Cooling System Huge Storage Unit Weight Redist. System Light Armor Plating X0-1V1's Piety Tracker > --- WEAPON ----------- EM Pulse Cannon Minigun Gauss Rifle > --- INVENTORY -------- Improved Ion Engine Improved Ion Engine Improved Ion Engine Wheel Wheel Wheel Wheel Wheel Compact Wheel Compact Wheel Armored Wheel Armored Wheel Cooling System Cooling System Cooling System Coolant Injector High-capacity Battery High-capacity Matter Pod Signal Interpreter Reaction Control System Proton Missile Launcher Proton Missile Launcher Mini Grenade Launcher Heavy Hammer Katana [Rating: 41] Favorites ----------- Power Improved Ion Engine Engine Improved Ion Engine Power Core Light Nuclear Core Propulsion Wheel Treads Light Treads Wheel Wheel Utility Huge Storage Unit Device Cooling System Storage Huge Storage Unit Protection Light Armor Plating Weapon Particle Cannon Energy Gun Particle Gun Energy Cannon Particle Cannon Ballistic Gun Assault Rifle Impact Weapon Heavy Hammer Build | -11 -10 -9 -8 ------- Run | Yrd Mat Mat Mat Slots Evolved 4 | . . 2 2 Power . | . . . . Propulsion . | . . . . Utility 3 | . . 2 1 Weapon 1 | . . . 1 Parts Attached 46 | 6 15 8 17 Power 7 | 1 1 1 4 Engine 5 | 1 . 1 3 Core 2 | . 1 . 1 Reactor . | . . . . Propulsion 11 | 2 5 1 3 Treads 3 | . 3 . . Leg . | . . . . Wheel 8 | 2 2 1 3 Hover . | . . . . Flight . | . . . . Utility 13 | 1 5 2 5 Device 7 | . 4 2 1 Storage 2 | 1 1 . . Processor . | . . . . Hackware . | . . . . Protection 4 | . . . 4 Artifact . | . . . . Weapon 15 | 2 4 4 5 Energy Gun 5 | 1 1 2 1 Energy Cannon 5 | . 2 1 2 Ballistic Gun 4 | 1 . 1 2 Ballistic Cannon . | . . . . Launcher . | . . . . Special Weapon . | . . . . Impact Weapon 1 | . 1 . . Slashing Weapon . | . . . . Piercing Weapon . | . . . . Special Melee Weapon . | . . . . Unidentified Prototypes 4 | . 1 3 . Parts Lost 27 | . 1 3 23 Power 4 | . . . 4 Propulsion 7 | . 1 3 3 Utility 9 | . . . 9 Weapon 7 | . . . 7 Highest Loss Streak 9 | . 1 1 9 To Critical Strikes . | . . . . Average Backups 19 | 2 15 22 24 Power 2 | . 2 3 2 Propulsion 4 | 1 3 3 6 Utility 5 | . 2 8 9 Weapon 5 | . 5 6 5 Tool/Special . | . . . . Unused Backups 34 | . 10 3 21 Power 5 | . 3 . 2 Propulsion 5 | . . . 5 Utility 11 | . 2 . 9 Weapon 12 | . 5 2 5 Tool/Special 1 | . . 1 . Average Slot Usage (%) 96 | . 99 98 91 Engine 5 | . 1 10 8 Core 6 | . 12 . 2 Treads 4 | . 4 7 4 Wheel 17 | . 23 13 10 Device 20 | . 13 32 23 Storage 11 | . 14 11 9 Protection 2 | . . . 7 Energy Gun 3 | . 5 . . Energy Cannon 17 | . 14 21 20 Ballistic Gun 3 | . 5 . 2 Impact Weapon 1 | . 1 . . Peak Build Rating 41 | 6 26 30 41 Average Rating 22 | 4 13 28 33 On Entrance 15 | . 6 26 30 Avg Prop Armor Cover (%) 9 | . . 11 7 Naked Turns . | . . . . Heaviest Build 112 | 14 95 99 112 Greatest Support 40 | 26 40 20 22 Greatest Overweight (x) 9 | . 4 9 9 Average Overweight (x) 4 | . 2 7 6 Largest Inventory Capacity 25 | 8 25 25 25 Average Capacity 23 | 7 21 25 25 Most Carried 25 | 4 21 25 25 Average Carried 19 | 2 15 22 24 Final Capacity 25 | 8 25 25 25 Final Carried 24 | 4 21 24 19 Class Distribution -------------------- 62% | Mutant 19% | Tank 14% | Scavenger-Mutant Dominant Class ---------------- Mutant | -10/Materials Mutant | -9/Materials Tank | -8/Materials Resources | -11 -10 -9 -8 ----------- Run | Yrd Mat Mat Mat Matter Collected 1838 | 223 651 503 461 Remotely . | . . . . Salvage Created 2980 | . 775 560 1645 Parts 168 | . 49 42 77 Haulers Intercepted . | . . . . Recyclers Shooed . | . . . . Parts Field Recycled . | . . . . Retrieved Matter . | . . . . Parts Self-Destructed . | . . . . Prevented . | . . . . Parts Restored . | . . . . Kills | -11 -10 -9 -8 ------- Run | Yrd Mat Mat Mat Combat Hostiles Destroyed 63 | . 19 15 29 Melee 3 | . . . 3 Guns 18 | . 11 . 7 Cannons 37 | . 8 15 14 Classes Destroyed 9 | . 4 2 3 Worker 4 | . . . 4 Builder 4 | . 1 . 3 Operator 1 | . . . 1 Watcher 8 | . 2 2 4 Swarmer 13 | . 3 7 3 Grunt 36 | . 16 4 16 Duelist 1 | . . 1 . Sentry 7 | . . 3 4 Hunter 6 | . . . 6 Best Kill Streak 9 | . 4 5 9 Combat Bots Only 8 | . 3 4 8 Max Kills in Single Turn 2 | . 2 2 2 Gunslinging 1 | . . . 1 Exploded . | . . . . Melee 1 | . . . 1 Uniques/NPCs Destroyed . | . . . . Combat | -11 -10 -9 -8 -------- Run | Yrd Mat Mat Mat Hostile Shots Fired 330 | . 71 56 203 Missed 72 | . 19 17 36 Hits 258 | . 52 39 167 Melee 1 | . . 1 . Projectile 257 | . 52 38 167 Critical Strikes 6 | . . . 6 Damage Taken 3510 | . 608 446 2456 Core 782 | . 152 76 554 Absorbed by Shields . | . . . . Core Remaining (%) 73 | 100 39 81 . Volleys Fired 148 | . 54 25 69 Largest 3 | . 2 2 3 Hottest 204 | . 136 136 204 Shots Fired 339 | . 108 50 181 Gun 136 | . 74 . 62 Cannon 203 | . 34 50 119 Launcher . | . . . . Special . | . . . . Kinetic 88 | . 37 . 51 Thermal 235 | . 66 50 119 Explosive . | . . . . Electromagnetic 16 | . 5 . 11 Robot Hit Streak 13 | . 12 9 13 Robot Miss Streak 5 | . 5 2 4 Penetration Max . | . . . . Secondary Targets 1 | . . . 1 Max Gunslinging Chain 1 | . . . 1 Shots Hit Robots 218 | . 67 33 118 Core Hits 99 | . 28 19 52 Critical Kills 2 | . . . 2 Critical Parts Destroyed 6 | . 1 . 5 Critical Strikes 10 | . 1 . 9 Burn 2 | . . . 2 Meltdown 1 | . . . 1 Destroy 2 | . 1 . 1 Smash 5 | . . . 5 Melee Attacks 40 | . 6 1 33 Impact 40 | . 6 1 33 Slashing . | . . . . Piercing . | . . . . Sneak Attacks 2 | . . . 2 Combat Hostiles . | . . . . Follow-up Attacks . | . . . . Damage Inflicted 5055 | . 1137 796 3122 Guns 1271 | . 626 . 645 Cannons 2836 | . 511 796 1529 Explosions . | . . . . Melee 948 | . . . 948 Ramming . | . . . . Kinetic 842 | . 272 . 570 Thermal 2869 | . 807 701 1361 Explosive . | . . . . Electromagnetic 301 | . 58 . 243 Impact 948 | . . . 948 Slashing . | . . . . Piercing . | . . . . Entropic 95 | . . 95 . Highest Corruption 2 | . . 2 . Average Corruption 2 | . . 2 . Corruption Purged . | . . . . Corruption Blocked . | . . . . Effects 1 | . . 1 . Data Loss (major) 1 | . . 1 . Overload Shots . | . . . . Overflow Damage 379 | . 5 39 335 Projectiles 63 | . 5 39 19 Explosions . | . . . . Melee 316 | . . . 316 Knockbacks 6 | . . . 6 Impact 5 | . . . 5 Kinetic . | . . . . Secondary 1 | . . . 1 Self-Inflicted Damage . | . . . . Shots . | . . . . Rammed . | . . . . Targets Rammed . | . . . . Kicked . | . . . . Crushed . | . . . . Highest Temperature 380 | . 141 84 380 Average Temperature 69 | . 35 12 102 Received Heat Transfer 1353 | . 300 99 954 Effects 8 | . . . 8 Shutdowns 1 | . . . 1 Interference 7 | . . . 7 Siege Activations . | . . . . Martial Activations . | . . . . Shielding Activations . | . . . . Robots Disrupted . | . . . . Combat Hostiles . | . . . . Robots Corrupted 6 | . . . 6 Combat Hostiles 5 | . . . 5 Parts Fried 11 | . . . 11 Impact Corruptions 15 | . . . 15 Robots Melted 1 | . . . 1 Combat Hostiles . | . . . . Parts Melted 7 | . 2 2 3 Heat Transferred 5513 | . 1591 1258 2664 Parts Sabotaged . | . . . . Parts Stolen . | . . . . Parts Stripped . | . . . . Power Chain Reactions . | . . . . Alert | -11 -10 -9 -8 ------- Run | Yrd Mat Mat Mat Maximum Alert Level 1 | . . 1 1 Low Security (%) 93 | 100 100 82 91 Level 1 6 | . . 17 8 Level 2 . | . . . . Level 3 . | . . . . Level 4 . | . . . . Level 5 . | . . . . High Security . | . . . . Max Security . | . . . . Peak Influence 394 | . 174 241 394 Initial 89 | . . 19 89 Average 60 | . 49 85 64 Influence Increases 1895 | . 536 462 897 Destroy 0b10 Robot/C 1260 | . 380 300 580 Destroy 0b10 Robot/NC 85 | . 15 10 60 Destroy Leader 266 | . 74 74 118 Successful Hack 30 | . 17 . 13 Disable Machine 90 | . 15 60 15 Destroy Structure 14 | . 5 3 6 Lose Combat Pursuer 150 | . 30 15 105 Influence Decreases 1525 | . 489 298 738 Entered New Map 150 | . . 28 122 Time Decay 1125 | . 479 250 396 Lost Part 250 | . 10 20 220 Squads Dispatched 10 | . 4 . 6 Investigation 5 | . 3 . 2 Extermination . | . . . . Reinforcement 5 | . 1 . 4 Assault . | . . . . Garrison . | . . . . Intercept . | . . . . Searches Triggered . | . . . . Construction Impeded . | . . . . Haulers Reinforced . | . . . . Active Scanning Responses . | . . . . Cargo Convoy Interrupts . | . . . . Stealth | -11 -10 -9 -8 --------- Run | Yrd Mat Mat Mat Distress Signals 3 | . 1 1 1 Communications Jammed . | . . . . Distress Signals . | . . . . Times Spotted 92 | . 29 19 44 Peak Tracking Total 7 | . 4 7 7 Tactical Retreats 8 | . 2 1 5 Traps | -11 -10 -9 -8 ------- Run | Yrd Mat Mat Mat Traps Triggered 4 | . 3 . 1 Indirectly . | . . . . Trap Hack Attempts . | . . . . Triggered . | . . . . Disarmed 6 | . 6 . . Reprogrammed . | . . . . Reused . | . . . . Traps Extracted . | . . . . Installed . | . . . . Triggered . | . . . . Machines | -11 -10 -9 -8 ---------- Run | Yrd Mat Mat Mat Machines Disabled 6 | . 1 4 1 Max in Single Turn 1 | . 1 1 1 Machines Repaired . | . . . . Machines Dismantled . | . . . . Machines Sabotaged . | . . . . Overloaded Fab Kills . | . . . . Hacking | -11 -10 -9 -8 --------- Run | Yrd Mat Mat Mat Machines Accessed 14 | . 8 1 5 Terminals 12 | . 7 1 4 Fabricators . | . . . . Repair Stations . | . . . . Recycling Units 1 | . 1 . . Scanalyzers 1 | . . . 1 Garrison Access . | . . . . Total Hacks 34 | . 21 1 12 Successful 17 | . 12 . 5 Failed 17 | . 9 1 7 Catastrophic 2 | . 1 . 1 Database Lockouts . | . . . . Manual 17 | . 7 1 9 Terminals 30 | . 20 1 9 Fabricators . | . . . . Repair Stations . | . . . . Recycling Units 1 | . 1 . . Scanalyzers 3 | . . . 3 Garrison Access . | . . . . Terminal Hacks 10 | . 9 . 1 Robot Analysis 1 | . 1 . . Prototype ID Bank 1 | . 1 . . Branch Access Points 1 | . . . 1 Locate Traps 3 | . 3 . . Disarm Traps 2 | . 2 . . Recall Investigation 1 | . 1 . . Zone Layout 1 | . 1 . . Fabricator Hacks . | . . . . Repair Station Hacks . | . . . . Recycling Unit Hacks 1 | . 1 . . Retrieve Components 1 | . 1 . . Scanalyzer 2 | . . . 2 Retrieve Study 2 | . . . 2 Garrison Access Hacks . | . . . . Unauthorized Hacks 4 | . 2 . 2 Terminals 4 | . 2 . 2 Botnet 4 | . 2 . 2 Fabricators . | . . . . Repair Stations . | . . . . Recycling Units . | . . . . Scanalyzers . | . . . . Garrison Access . | . . . . Data Cores Recovered 1 | . . . 1 Used . | . . . . Hacking Detections 12 | . 6 1 5 Full Trace Events 1 | . . . 1 Feedback Events . | . . . . Feedback Blocked . | . . . . Robot Schematics Acquired . | . . . . Robots Built . | . . . . Authchips . | . . . . Time . | . . . . Total Robot Build Rating . | . . . . Part Schematics Acquired . | . . . . Parts Built . | . . . . Authchips . | . . . . Time . | . . . . Total Part Build Rating . | . . . . Part Studies Acquired 2 | . . . 2 Parts Repaired . | . . . . Time . | . . . . Parts Recycled . | . . . . Recycled Matter . | . . . . Retrieved Matter . | . . . . Retrieved Components 10 | . 10 . . Parts Scanalyzed . | . . . . Part Schematics Acquired . | . . . . Parts Damaged . | . . . . Bothacking | -11 -10 -9 -8 ------------ Run | Yrd Mat Mat Mat Used RIF Installer . | . . . . Robots Hacked . | . . . . Non-combat . | . . . . Combat . | . . . . Robot Hacks Applied . | . . . . Relay Couplers Released . | . . . . Fabnet Peak Effective % . | . . . . Robots Rewired . | . . . . Allies Hacked . | . . . . Hacks Repelled . | . . . . Allies | -11 -10 -9 -8 -------- Run | Yrd Mat Mat Mat Total Allies . | . . . . Largest Group . | . . . . Highest-Rated Group . | . . . . Highest-Rated Ally . | . . . . Total Orders . | . . . . Ally Attacks . | . . . . Total Damage . | . . . . Kills . | . . . . Allies Corrupted . | . . . . Allies Melted . | . . . . X0-1V1 Amusement Gains 30 | . 15 . 15 Good Acts 4 | . . 3 1 Bad Acts 21 | . . 6 15 Intel | -11 -10 -9 -8 ------- Run | Yrd Mat Mat Mat Active Infowar (turns) 1517 | . . 919 598 Sensors 1517 | . . 919 598 Robot Analysis Total 1 | . 1 . . Derelict Logs Recovered . | . . . . Drone Launches . | . . . . Drone Recoveries . | . . . . Exploration | -11 -10 -9 -8 ------------- Run | Yrd Mat Mat Mat Turns Passed 4599 | 45 2271 923 1360 Spaces Moved 2067 | 36 1121 421 489 Core 2 | 2 . . . Treads 89 | . 89 . . Legs . | . . . . Wheels 1976 | 34 1032 421 489 Hover . | . . . . Flight . | . . . . Fastest Speed 50 | 50 80 140 145 Average Speed 158 | 90 134 187 191 Slowest Speed 320 | 100 320 215 225 Overloaded Moves . | . . . . Propulsion Burnouts . | . . . . Robots Hopped . | . . . . Potential Cave-ins . | . . . . Cave-ins Triggered . | . . . . Exploration Rate (%) 44 | 3 99 34 40 Regions Visited 3 Branch Regions . Pre-discovered Areas . | . . . . Known Exits Taken . | . . . . Unknown Exits Taken 3 | 1 1 1 . Scrap Searched . | . . . . Spaces Dug 7 | . 4 . 3 Terrain Destroyed 8 | . 4 1 3 Melee 7 | . 4 . 3 Projectile 1 | . . 1 . AOE . | . . . . Terrain Rammed . | . . . . Walls Destroyed . | . . . . Machines Disabled . | . . . . Actions | -11 -10 -9 -8 --------- Run | Yrd Mat Mat Mat Total 3022 | 45 1760 505 712 Wait 593 | . 502 17 74 Move 2064 | 35 1120 420 489 Hop . | . . . . Pick Up 58 | 4 31 12 11 Fast Attach 29 | 6 4 6 13 Attach 22 | . 2 9 11 Detach 4 | . 1 3 . Swap 24 | . 21 2 1 Drop 40 | . 19 10 11 Fire 148 | . 54 25 69 Melee 40 | . 6 1 33 Ram . | . . . . Kick . | . . . . Crush . | . . . . Escape Stasis . | . . . . Rewire . | . . . . Trap . | . . . . Miscellaneous . | . . . . Route ------- -11/Scrapyard -10/Materials (discovered 6 exits: *Mat x3 / [*Min x2] / [*Sub]) -9/Materials -8/Materials History --------- Turn | Location | Event 16 | -11/Scrapyard | Discovered new exit (range 15) 46 | -11/Scrapyard | Entered Materials 308 | -10/Materials | Build established: Mutant 369 | -10/Materials | Discovered new exit (range 16) 487 | -10/Materials | Discovered new exit (range 15) 626 | -10/Materials | Build established: Scavenger-Mutant 924 | -10/Materials | Discovered new exit (range 5) 1183 | -10/Materials | Discovered new exit (range 4) 1283 | -10/Materials | Build established: Mutant 1616 | -10/Materials | Discovered new exit (range 8) 1785 | -10/Materials | Discovered new exit (range 8) 1828 | -10/Materials | Core integrity fell below 50% 2282 | -10/Materials | Prayed at D.C.S.S. Altar Unit 2317 | -10/Materials | Entered another Materials area 2317 | -9/Materials | Evolved 2 slots: Utility x2 2546 | -9/Materials | X0-1V1 vaporized surrounding terrain (radius 15) 2640 | -9/Materials | Discovered new exit (range 13) 2715 | -9/Materials | Sensors blinded by X0-1V1 2934 | -9/Materials | X0-1V1 foreshadows a heat wave 3240 | -9/Materials | Entered another Materials area 3240 | -8/Materials | Evolved 2 slots: Utility x1, Weapon x1 3542 | -8/Materials | X0-1V1 enhanced Transport squad support 3607 | -8/Materials | Build established: Tank 3712 | -8/Materials | X0-1V1 announced a LAN party 4068 | -8/Materials | X0-1V1 mutated your Utility slot to Power slot 4141 | -8/Materials | X0-1V1 mutated your Propulsion slot to Utility slot 4443 | -8/Materials | Destroyed 8 combat bots 4497 | -8/Materials | Lost 9 parts (2p2n2u3w) 4505 | -8/Materials | Core integrity fell below 50% 4573 | -8/Materials | Core integrity fell below 20% 4600 | -8/Materials | Destroyed by G-47 Trooper with Particle Gun Last Messages --------------- shimmering waves of color. 04580_ K-01 Serf collects debris. 04581_ U-05 Engineer builds a Wall. 04583_ Sneak attack on U-05 Engineer. 04583_ Destroyed Wheel. 04583_ U-05 Engineer system corrupted by crushing effect. 04583_ Terrain Scan Processor fried. 04583_ Terrain Scanner fried. 04583_ U-05 Engineer destroyed. 04585_ K-01 Serf collects debris. 04587_ Weight Redist. System destroyed. 04588_ K-01 Serf collects debris. 04593_ Mic. Nuclear Core destroyed. 04594_ Critical hit (Burn: +37). 04595_ K-01 Serf collects debris. 04595_ G-47 Trooper knocked back. 04598_ K-01 Serf collects debris. 04599_ Critical hit (Burn: +37). 04600_ X0-1V1 guffaws! Map ----- +----------------------------------------------------+ | ###???????????????????????????????????????????? | | #???????????????????????????????????????????? | | #?????????????????? ????????????????????????? | | #?????????????????? ????????????????????????? | | +?????????????????? ????????????????????????? | | #?????????????????? ????????????????????????? | | #?????????????????? ????????????????????????? | | ##????????????????? ????????????????????????? | | #????????????????# #???????????????????????? | | #????????????????#*#???????????????????????? | | " #????????????????#%#???????????????????????? | | #????????????????#!#???????#???????????????? | | #??????#+#???????#=#?????? #???????????????? | | ##??????# #???????# #???? ????????????????? | | #???????# #??????## ##?? ??????????????????? | | #???????# ########==*##+#+####??????????????? | | #???????#%# =/%!=%**! #?????????? | | #########!# %*[*#=[=#########??????????????? | | =!%==%+[ % ##[##??????????????????????? | | #######"#!# ## ########????????????????? | | ##??# *%*# #! ! ## # #????????????????? | | #???# !# # ## # """ #????????????????? | | *#???# # ####+#### # """ o#????????????????? | | **#???# # ???????# # """ !#????????????????? | | ###???# # ???????#=#= #????????????????? | | ??????# # ???????#%g%@ %#????????????????? | | ??????# # ???????#%##g######???????????????? | | ??????# # ####=#g%% #???????????????? | | ??????# # T%%/%k #???????????????? | | ??????##+### %# #???????????????? | | ???????# ??# #########???????????????? | | ???????# ??# """ #???????????????????????? | | ???????# ??# """ #???????????????????????? | | ???????#???# """ ???????????????????????? | | ???????????? ???????????????????????? | | ???????????? ?? ! ???????????????????????? | | ???????????????? ???????????????????????? | | ??????????????? ???????????????????????? | | ??????????????? ???????????????????????? | | ???????????????##+######???????????????????????? | | ???????????????????????????????????????????????? | | ???????????????????????????????????????????????? | | ???????????????????????????????????????????????? | | ???????????????????????????????????????????????? | | ???????????????????????????????????????????????? | | ???????????????????????????????????????????????? | | ???????????????????????????????????????????????? | | ???????????????????????????????????????????????? | | ???????????????????????????????????????????????? | | ???????????????????????????????????????????????? | +----------------------------------------------------+ Best States ------------- Heat Dissipation 53 Energy Generation 24 Energy Capacity 430 Matter Stores 700 Matter Capacity 700 Sight Range 16 Robot Scan Range 14 Terrain Scan Density 10 Additional Mass Support 6 Armor Coverage 300 Evasion (%) 44 Recoil Reduction 2 Item Schematics ----------------- None Robot Schematics ------------------ None Fabricated ------------ Nothing Repaired ---------- Nothing Studied --------- Imp. Ion Engine | -8/Materials | Hacked Com. Wheel | -8/Materials | Hacked Alien Tech Used ----------------- None Achievements -------------- None Challenges ------------ None Game ------ Seed BracePiercingRipper Manual? 0 Play Time 00:40:38 Cumulative 70.5 hours Start 2026.06.24 @ 00:30:24 End 2026.06.24 @ 21:30:26 Sessions 2 Manual Loads 0 Difficulty Rogue Special Mode None Game No. 79 Rogue 79 Adventurer 0 Explorer 0 Win Type - Total 2 Types 2/0/0/0/0/0/0/0/0/0 Lore% 28 Gallery% 39 Achievement% 31 Wizard Run 0 Options --------- Layout 1 ASCII 0 Keyboard 0 Movement Mouse Keybinds 0 Fullscreen 1 Font 24/Smallcaps Map View 25x17 Zoom Use 45% Tactical HUD 1 Map Filters NONE Filters NONE Steam 1 RUN: f747f315-4b77-4c5f-8bb9-d49be9fb7911